bitfinex-derivatives/quotes_SOLF0:USTF0_20250413
["timestamp","ask_amount","ask_price","bid_price","bid_amount"]
[1744578223478,0.05822205,125.89,125.87,0.05704595]
[1744578223677,7.944,125.91,125.87,0.05704595]
[1744578223979,0.05703091,125.89,125.87,0.05704595]
[1744578224177,2.0047,125.95,125.87,0.05704595]
[1744578224478,2.0047,125.95,125.86,38.59990755]
[1744578225179,2.0047,125.95,125.87,23.7269297]
[1744578225180,7.9426,125.93,125.87,23.7269297]
[1744578225477,0.05204302,125.92,125.89,0.05167883]
[1744578225678,0.05204302,125.92,125.89,46.82]
[1744578225978,0.05204302,125.92,125.89,0.05074111]
[1744578226374,23.7269297,125.91,125.8,46.82]
[1744578226575,2.1193,125.9,125.77,633.6914]
[1744578226976,2.1193,125.9,125.77,635.893]
[1744578227182,40.73904416,125.9,125.77,635.893]
[1744578227583,0.05740577,125.85,125.82,0.05365536]
[1744578227883,0.05740577,125.85,125.77,635.893]
[1744578228080,0.05740577,125.85,125.82,0.05232672]
[1744578228284,46.8,125.88,125.82,0.05232672]
[1744578228484,8.00568006,125.85,125.82,0.05232672]
[1744578228683,0.05788006,125.85,125.82,0.05232672]
[1744578229076,7.9437,125.91,125.82,410.61207088]
[1744578229282,46.8,125.97,125.85,38.61974416]
[1744578229484,7.9451,125.89,125.83,2.1842]
[1744578229785,46.8,125.97,125.83,40.80394416]
[1744578229983,7.9422,125.94,125.86,38.61974416]
[1744578230183,0.06013983,125.91,125.89,0.05936538]
[1744578230580,38.61974416,125.96,125.85,2.1026]
[1744578230776,0.05954271,125.91,125.89,0.05149953]
[1744578231180,38.61974416,125.96,125.89,0.05149953]
[1744578231388,0.05925241,125.91,125.89,0.05149953]
[1744578231589,2.1443,125.96,125.89,0.05149953]
[1744578231782,0.05137267,125.94,125.84,38.61974416]
[1744578232086,0.05511248,125.94,125.88,0.05206311]
[1744578232287,38.61974416,125.95,125.88,0.05206311]
[1744578232481,7.9448,125.89,125.88,0.05206311]
[1744578232678,7.9448,125.89,125.83,49.0042]
[1744578232989,7.9448,125.89,125.87,0.0538318]
[1744578233188,40.76404416,125.96,125.87,0.0538318]
[1744578233389,0.05812685,125.89,125.87,0.0538318]
[1744578233583,2.1443,125.96,125.88,46.8]
[1744578233778,4.2748,125.99,125.88,46.8]
[1744578233989,46.8,126.01,125.89,40.76294416]
[1744578234189,2.1443,126.02,125.92,38.61974416]
[1744578234379,4.2298,126.04,125.93,46.8]
[1744578234585,4.2298,126.04,125.95,38.61974416]
[1744578234784,4.2298,126.04,125.96,4.2176]
[1744578234987,0.05057314,126.01,125.98,0.05600037]
[1744578235479,0.05057314,126.01,125.98,47.75600037]
[1744578235883,0.05057314,126.01,125.98,86.37574453]
[1744578236085,69.94506352,126.05,125.98,86.37574453]
[1744578236583,69.94506352,126.05,125.98,0.05600037]
[1744578237290,0.05590774,126.03,125.98,0.05600037]
[1744578238183,7.9385,125.99,125.98,0.05600037]
[1744578238380,0.05590774,126.03,125.98,0.05600037]
[1744578238580,2.0356,126.04,125.98,0.05600037]
[1744578238783,0.05000615,126.02,125.98,0.05600037]
[1744578239294,7.9384,126.0,125.98,0.05600037]
[1744578239492,0.05000615,126.02,125.98,0.05600037]
[1744578239897,7.9385,125.99,125.98,0.05600037]
[1744578240390,86.29974416,126.01,125.92,47.68]
[1744578240595,88.31454416,126.01,125.92,47.68]
[1744578240793,7.9402,125.97,125.92,47.68]
[1744578241495,0.0499985,125.96,125.93,0.05621258]
[1744578244595,7.9455,125.88,125.85,364.0]
[1744578244795,7.9455,125.88,125.84,47.68]
[1744578244991,42.77864416,125.95,125.84,47.68]
[1744578245888,0.05528376,125.91,125.88,0.05175456]
[1744578246297,7.9448,125.89,125.88,0.05175456]
[1744578246996,46.55974416,125.89,125.8,47.68]
[1744578247190,38.61974416,125.89,125.8,47.68]
[1744578247390,40.61554416,125.89,125.8,47.68]
[1744578247991,0.05423385,125.86,125.83,0.05025625]
[1744578248198,38.67397801,125.86,125.77,2.1735]
[1744578248393,47.68,125.85,125.76,47.68]
[1744578248886,7.9491,125.83,125.76,47.68]
[1744578249190,47.68,125.85,125.76,47.68]
[1744578249390,0.05354618,125.81,125.78,0.05071985]
[1744578249591,7.9512,125.79,125.78,0.05071985]
[1744578250800,0.05354618,125.81,125.78,0.05071985]
[1744578251500,0.05354618,125.81,125.78,47.75071985]
[1744578252801,0.05354618,125.81,125.8,7.9505]
[1744578254302,0.05354618,125.81,125.78,47.75071985]
[1744578254802,0.05354618,125.81,125.78,55.70231985]
[1744578255003,0.05354618,125.81,125.78,47.75071985]
[1744578255206,0.05354618,125.81,125.78,0.05071985]
[1744578255402,7.9511,125.79,125.78,0.05071985]
[1744578255602,0.05354618,125.81,125.78,0.05071985]
[1744578256111,63.5995,125.98,125.79,38.61974416]
[1744578256403,7.9455,125.88,125.84,7.9476]
[1744578256597,38.61974416,125.96,125.83,86.33974416]
[1744578256794,2.1594,125.97,125.83,86.33974416]
[1744578256998,7.9436,125.91,125.86,7.9465]
[1744578257194,2.1594,125.97,125.9,0.057168]
[1744578257500,0.05932159,125.93,125.83,86.33974416]
[1744578257701,2.1594,125.97,125.92,0.05978253]
[1744578257903,8.00075194,125.89,125.85,7.9471]
[1744578258099,7.9452,125.89,125.85,7.9471]
[1744578258298,0.05371388,125.88,125.86,0.05578544]
[1744578259508,0.05371388,125.88,125.87,7.9461]
[1744578259807,7.9433,125.92,125.86,0.05578544]
[1744578260110,7.9433,125.92,125.88,7.9451]
[1744578260808,0.05595501,125.91,125.89,0.05206655]
[1744578261110,7.99965501,125.91,125.89,0.05206655]
[1744578261310,0.05595501,125.91,125.89,0.05206655]
[1744578262204,7.9442,125.9,125.89,0.05206655]
[1744578263215,54.16,125.9,125.8,633.5099]
[1744578263414,2.1622,125.89,125.82,7.9487]
[1744578263615,7.9471,125.86,125.82,7.9487]
[1744578264113,2.1622,125.89,125.81,7.9496]
[1744578264313,0.05962179,125.85,125.83,0.05113118]
[1744578264815,0.05962179,125.85,125.76,2.1422]
[1744578265012,46.22,125.86,125.76,2.1422]
[1744578265213,7.95,125.81,125.77,7.9518]
[1744578265517,84.83974416,125.86,125.76,2.1422]
[1744578265713,84.83974416,125.86,125.75,46.22]
[1744578265915,7.9515,125.79,125.75,54.1733]
[1744578266317,84.83974416,125.86,125.77,7.9521]
[1744578266615,84.83974416,125.86,125.74,2.0318]
[1744578266822,0.05999658,125.83,125.8,0.05465066]
[1744578267116,46.24,125.82,125.8,0.05465066]
[1744578267514,46.24,125.82,125.74,2.0318]
[1744578267715,48.4288,125.82,125.74,2.0318]
[1744578268120,7.9525,125.77,125.74,9.986]
[1744578268319,48.4288,125.82,125.7,2.1422]
[1744578268512,38.61974416,125.8,125.67,86.93524416]
[1744578268917,0.05485536,125.77,125.75,0.05925977]
[1744578269119,7.9553,125.73,125.69,7.9573]
[1744578269422,46.24,125.78,125.67,48.3155]
[1744578269724,7.9547,125.74,125.69,7.9571]
[1744578269919,46.24,125.78,125.67,48.3155]
[1744578270225,0.05587309,125.74,125.71,0.0204989]
[1744578271125,0.05587309,125.74,125.71,46.2604989]
[1744578272220,0.05587309,125.74,125.71,0.0204989]
[1744578272422,7.9554,125.73,125.71,0.0204989]
[1744578272616,0.05587309,125.74,125.71,0.0204989]
[1744578272925,7.9556,125.72,125.71,0.0204989]
[1744578273125,0.05587309,125.74,125.71,0.0204989]
[1744578273526,7.9556,125.72,125.71,0.0204989]
[1744578276329,7.9579,125.69,125.65,10.0056]
[1744578276525,46.26,125.74,125.65,2.046]
[1744578276726,46.26,125.74,125.67,7.9583]
[1744578277027,7.9568,125.71,125.67,7.9583]
[1744578277426,0.05775272,125.7,125.67,7.9583]
[1744578277627,0.05775272,125.7,125.69,7.9575]
[1744578279326,0.05775272,125.7,125.67,7.9586]
[1744578279529,0.05775272,125.7,125.63,40.63984416]
[1744578279728,0.05775272,125.7,125.63,42.62374416]
[1744578279929,2.0225,125.77,125.69,38.61974416]
[1744578280229,6.2651,125.81,125.72,38.61974416]
[1744578280424,6.2651,125.81,125.73,7.9543]
[1744578281130,0.05808737,125.78,125.76,0.05775272]
[1744578281529,0.05808737,125.78,125.77,7.9524]
[1744578281832,6.2498,125.84,125.77,7.9524]
[1744578282030,4.1603,125.84,125.76,0.05775272]
[1744578282230,7.95,125.81,125.75,38.61974416]
[1744578282628,4.1603,125.84,125.75,38.61974416]
[1744578283129,0.05830077,125.81,125.78,0.05061609]
[1744578283329,7.9509,125.8,125.78,0.05061609]
[1744578286234,7.9511,125.79,125.78,0.05061609]
[1744578288138,7.9507,125.8,125.78,0.05061609]
[1744578288438,0.05830077,125.81,125.78,0.05061609]
[1744578289440,8.00830077,125.81,125.78,0.05061609]
[1744578289737,0.05830077,125.81,125.78,0.05061609]
[1744578291034,7.9505,125.8,125.78,0.05061609]
[1744578291231,0.05830077,125.81,125.78,0.05061609]
[1744578292439,7.9508,125.8,125.78,0.05061609]
[1744578292737,0.05830077,125.81,125.78,0.05061609]
[1744578293637,8.00850077,125.81,125.78,0.05061609]
[1744578295440,7.9511,125.79,125.78,0.05061609]
[1744578295636,23.76927098,125.8,125.7,2.0216]
[1744578295838,23.76927098,125.77,125.66,1.3838904]
[1744578296038,48.2077,125.76,125.65,69.88927098]
[1744578296237,46.12,125.76,125.65,69.88927098]
[1744578296435,7.9553,125.73,125.65,69.88927098]
[1744578296636,46.12,125.76,125.65,69.88927098]
[1744578296838,0.05384338,125.7,125.68,0.05288915]
[1744578297135,7.9558,125.72,125.65,69.88927098]
[1744578297340,0.0579365,125.7,125.68,0.05618728]
[1744578298744,0.0579365,125.7,125.68,8.01408728]
[1744578300346,46.12,125.76,125.68,0.05618728]
[1744578300646,46.12,125.76,125.68,23.76927098]
[1744578301033,46.12,125.76,125.65,69.88927098]
[1744578301234,23.76927098,125.75,125.61,48.1783]
[1744578301439,23.76927098,125.72,125.62,7.9617]
[1744578301741,0.05130621,125.69,125.67,0.05517032]
[1744578302343,7.9581,125.68,125.67,0.05517032]
[1744578304142,7.96,125.68,125.59,4.77397959]
[1744578304444,23.76927098,125.7,125.59,3.38909788]
[1744578305542,52.4407,125.71,125.59,3.38909788]
[1744578305543,0.05703688,125.66,125.59,3.38909788]
[1744578305737,48.58,125.65,125.59,3.38909788]
[1744578306335,7.9616,125.63,125.59,3.38909788]
[1744578306546,2.0179,125.64,125.59,3.38909788]
[1744578306750,0.05591449,125.62,125.59,3.38909788]
[1744578307448,0.05591449,125.62,125.59,11.35249788]
[1744578308848,8.01801449,125.62,125.59,3.38909788]
[1744578309343,7.9627,125.61,125.59,3.38909788]
[1744578309544,0.05591449,125.62,125.59,3.38909788]
[1744578309947,0.05591449,125.62,125.59,11.35249788]
[1744578310547,0.05591449,125.62,125.59,11.35239788]
[1744578310746,0.05591449,125.62,125.59,3.38909788]
[1744578311349,2.0351,125.68,125.6,4.1081]
[1744578311641,7.9608,125.64,125.6,7.9627]
[1744578311847,2.0177,125.67,125.59,3.38909788]
[1744578312339,7.9616,125.63,125.59,11.35259788]
[1744578312538,7.9616,125.63,125.62,0.05980319]
[1744578313640,7.9616,125.63,125.59,11.35259788]
[1744578313641,0.05039626,125.64,125.59,3.38909788]
[1744578314046,7.9626,125.61,125.59,3.38909788]
[1744578314244,48.62,125.62,125.52,1.38565371]
[1744578314545,48.62,125.62,125.52,4.229]
[1744578314745,0.05120568,125.58,125.55,7.9659]
[1744578314947,0.05120568,125.58,125.55,23.76927098]
[1744578315136,7.9616,125.63,125.6,7.963]
[1744578315341,7.9616,125.63,125.56,48.62]
[1744578315541,50.6377,125.67,125.56,48.62]
[1744578315847,7.961,125.64,125.6,7.9628]
[1744578316150,7.9613,125.63,125.6,7.9628]
[1744578316346,0.05898572,125.63,125.61,8.02120858]
[1744578317247,0.05898572,125.63,125.61,0.05870858]
[1744578317946,0.05898572,125.63,125.61,8.02120858]
[1744578318144,8.02028572,125.63,125.61,0.05870858]
[1744578318447,0.05898572,125.63,125.61,0.05870858]
[1744578318639,8.02058572,125.63,125.61,0.05870858]
[1744578319341,0.05898572,125.63,125.61,0.05870858]
[1744578319739,2.0975,125.67,125.61,0.05870858]
[1744578319952,2.2029,125.73,125.62,48.62]
[1744578320144,6.5136,125.73,125.66,7.9592]
[1744578320345,7.9579,125.69,125.62,48.62]
[1744578320650,6.5136,125.73,125.68,7.9579]
[1744578320950,0.05332303,125.72,125.69,0.0582838]
[1744578321445,0.05319447,125.72,125.69,0.05627567]
[1744578322250,7.9568,125.7,125.69,0.05627567]
[1744578322847,7.9577,125.69,125.62,48.62]
[1744578323151,6.5136,125.73,125.62,48.62]
[1744578323349,6.5136,125.73,125.61,72.38927098]
[1744578323547,6.5136,125.73,125.64,7.9602]
[1744578324052,7.9588,125.67,125.64,7.9602]
[1744578324346,47.04,125.7,125.64,0.05975133]
[1744578324553,0.0545057,125.67,125.64,0.05975133]
[1744578325650,47.04,125.66,125.57,47.04]
[1744578325849,2.0961,125.65,125.57,47.04]
[1744578326049,7.9632,125.6,125.57,55.0047]
[1744578326249,2.0961,125.65,125.57,55.0047]
[1744578326448,2.0961,125.65,125.57,47.04]
[1744578326650,7.963,125.61,125.57,55.0049]
[1744578326849,7.963,125.61,125.57,47.04]
[1744578327154,8.02178944,125.62,125.57,47.04]
[1744578327653,8.02178944,125.62,125.58,7.9639]
[1744578327848,0.05978944,125.62,125.57,47.04]
[1744578328045,0.05978944,125.62,125.58,23.76927098]
[1744578330052,0.05978944,125.62,125.61,7.9625]
[1744578330455,4.2328,125.68,125.58,23.76927098]
[1744578330655,7.9589,125.67,125.61,23.76927098]
[1744578330851,47.04,125.7,125.61,23.76927098]
[1744578331156,7.9591,125.67,125.63,7.9607]
[1744578331555,47.04,125.7,125.61,23.76927098]
[1744578331752,0.05227229,125.66,125.64,0.05469239]
[1744578331947,6.3003,125.72,125.64,23.76927098]
[1744578332149,7.9562,125.71,125.67,7.9582]
[1744578332757,7.9562,125.71,125.68,7.958]
[1744578333060,7.9572,125.7,125.64,23.76927098]
[1744578333250,0.05158028,125.71,125.68,0.0503536]
[1744578333450,4.2526,125.72,125.68,0.0503536]
[1744578333649,2.15409684,125.71,125.63,47.04]
[1744578333857,2.0948,125.71,125.63,55.001]
[1744578334049,2.0948,125.71,125.63,47.04]
[1744578334649,7.9566,125.71,125.63,47.04]
[1744578334855,0.0613021,125.68,125.66,0.05764113]
[1744578335060,0.0613021,125.68,125.67,7.9587]
[1744578336657,677.56,125.81,125.67,31.72927098]
[1744578336961,677.56,125.81,125.7,23.76927098]
[1744578337163,681.7257,125.81,125.74,7.9543]
[1744578337558,51.2057,125.81,125.74,7.9543]
[1744578337759,0.05593646,125.79,125.76,0.06040604]
[1744578338164,7.9521,125.78,125.76,0.06040604]
[1744578338357,0.05593646,125.79,125.76,0.06040604]
[1744578338758,0.05593646,125.79,125.76,8.01310604]
[1744578338961,0.05593646,125.79,125.76,0.06040604]
[1744578339162,7.9521,125.78,125.76,0.06040604]
[1744578339362,0.05593646,125.79,125.76,0.06040604]
[1744578339968,8.00743646,125.79,125.76,8.01340604]
[1744578340267,0.05593646,125.79,125.76,0.06040604]
[1744578340564,0.05593646,125.79,125.77,7.952]
[1744578340966,0.05593646,125.79,125.76,0.06040604]
[1744578341266,0.05593646,125.79,125.78,7.9518]
[1744578341976,0.05593646,125.79,125.77,7.9519]
[1744578342164,0.05593646,125.79,125.76,0.06040604]
[1744578342569,8.00743646,125.79,125.76,0.06040604]
[1744578343168,7.9519,125.78,125.76,0.06040604]
[1744578343570,0.05593646,125.79,125.76,0.06040604]
[1744578343772,8.00733646,125.79,125.76,8.01340604]
[1744578343972,8.00733646,125.79,125.76,0.06040604]
[1744578344566,0.05593646,125.79,125.76,0.06040604]
[1744578344772,0.05593646,125.79,125.77,45.54]
[1744578344972,0.05593646,125.79,125.76,0.06040604]
[1744578345173,0.05593646,125.79,125.7,2.1087]
[1744578345476,23.76927098,125.78,125.7,7.9566]
[1744578345674,7.9548,125.74,125.7,7.9566]
[1744578345969,4.2819,125.77,125.67,53.1711]
[1744578346173,4.2819,125.77,125.67,76.94037098]
[1744578346376,0.05983945,125.73,125.71,0.05759997]
[1744578348468,7.9556,125.72,125.71,0.05759997]
[1744578348666,0.05983945,125.73,125.64,51.1]
[1744578348876,74.86927098,125.75,125.64,51.1]
[1744578349077,51.1,125.75,125.65,23.76927098]
[1744578349375,4.2819,125.77,125.68,23.76927098]
[1744578349569,7.9531,125.76,125.72,7.9551]
[1744578349770,51.1,125.79,125.69,57.3698]
[1744578349971,55.1305,125.83,125.73,7.9548]
[1744578350172,0.05418824,125.75,125.73,7.9548]
[1744578350376,55.1305,125.83,125.73,7.9548]
[1744578350679,0.05676517,125.75,125.71,23.76927098]
[1744578350880,55.1305,125.83,125.71,23.76927098]
[1744578351086,0.06129908,125.74,125.71,23.76927098]
[1744578351384,0.05402456,125.74,125.72,7.9556]
[1744578351884,0.05402456,125.74,125.71,31.72537098]
[1744578352680,0.05402456,125.74,125.71,7.9561]
[1744578353482,8.00832456,125.74,125.7,7.9566]
[1744578353779,0.05402456,125.74,125.69,57.3698]
[1744578354182,0.05402456,125.74,125.69,55.1919]
[1744578355284,0.05402456,125.74,125.69,51.1]
[1744578355481,51.1,125.73,125.65,51.1]
[1744578355681,51.1,125.73,125.61,51.1]
[1744578355682,25.91527098,125.72,125.61,51.1]
[1744578355882,0.05665043,125.68,125.59,51.1]
[1744578356082,2.0943,125.71,125.59,51.1]
[1744578356385,7.961,125.64,125.6,7.9628]
[1744578356886,7.961,125.64,125.59,51.1]
[1744578357088,8.01717045,125.65,125.61,7.9621]
[1744578357584,0.05697045,125.65,125.63,7.9611]
[1744578357789,0.05697045,125.65,125.61,23.76927098]
[1744578358289,0.05697045,125.65,125.63,7.9608]
[1744578358590,0.05697045,125.65,125.61,23.76927098]
[1744578358784,0.05697045,125.65,125.61,31.73137098]
[1744578358986,0.05697045,125.65,125.61,23.76927098]
[1744578360091,8.01747045,125.65,125.61,23.76927098]
[1744578360293,0.05697045,125.65,125.59,51.1]
[1744578361190,0.05697045,125.65,125.55,1.38537789]
[1744578361383,0.05697045,125.65,125.54,23.76927098]
[1744578361587,2.0068,125.66,125.57,23.76927098]
[1744578361893,0.05570867,125.61,125.57,73.36927098]
[1744578362097,0.05570867,125.61,125.57,49.6]
[1744578362596,0.05570867,125.61,125.58,7.9643]
[1744578363096,8.01830867,125.61,125.58,7.9643]
[1744578364592,7.9632,125.6,125.57,57.5648]
[1744578364795,0.05570867,125.61,125.55,2.1153]
[1744578365097,0.05570867,125.61,125.53,51.62]
[1744578365297,27.95047098,125.65,125.54,7.9668]
[1744578365497,0.06072638,125.58,125.54,7.9668]
[1744578365701,27.95047098,125.65,125.54,7.9668]
[1744578365996,0.05777366,125.57,125.53,51.62]
[1744578366195,27.95047098,125.65,125.53,51.62]
[1744578366398,0.05908782,125.56,125.55,7.966]
[1744578366605,27.95047098,125.65,125.53,51.62]
[1744578366898,7.9639,125.59,125.56,7.9654]
[1744578367098,27.95047098,125.65,125.56,7.9654]
[1744578367393,7.9642,125.59,125.55,7.9661]
[1744578367699,0.06048825,125.58,125.56,0.05478178]
[1744578367890,4.1812,125.65,125.53,51.62]
[1744578368094,0.05315147,125.58,125.56,0.05909914]
[1744578368294,4.1812,125.65,125.53,51.62]
[1744578368494,0.05465417,125.58,125.57,7.965]
[1744578368694,7.9634,125.6,125.57,7.965]
[1744578368895,0.05398231,125.59,125.57,7.965]
[1744578369297,0.05398231,125.59,125.56,8.02182029]
[1744578369494,0.05398231,125.59,125.56,0.05622029]
[1744578369994,7.9649,125.58,125.56,0.05622029]
[1744578370196,0.05398231,125.59,125.56,0.05622029]
[1744578370595,7.9649,125.58,125.56,0.05622029]
[1744578370899,0.05398231,125.59,125.56,0.05622029]
[1744578371404,7.9646,125.58,125.56,0.05622029]
[1744578371800,8.01788231,125.59,125.56,0.05622029]
[1744578372300,0.05398231,125.59,125.56,0.05622029]
[1744578372596,0.05398231,125.59,125.56,8.02192029]
[1744578373198,8.01818231,125.59,125.56,8.02192029]
[1744578374001,8.01818231,125.59,125.56,0.05622029]
[1744578374600,8.01818231,125.59,125.56,8.02182029]
[1744578375793,0.05398231,125.59,125.57,7.965]
[1744578376097,0.05398231,125.59,125.56,0.05622029]
[1744578376296,0.05398231,125.59,125.56,8.02162029]
[1744578376498,8.01788231,125.59,125.56,8.02162029]
[1744578379703,8.01788231,125.59,125.57,7.9651]
[1744578380303,8.01788231,125.59,125.56,8.02162029]
[1744578380507,0.05398231,125.59,125.56,0.05622029]
[1744578381700,7.9651,125.57,125.56,0.05622029]
[1744578382004,0.05398231,125.59,125.56,0.05622029]
[1744578382401,0.05398231,125.59,125.56,8.02152029]
[1744578382698,8.01788231,125.59,125.56,8.02152029]
[1744578383298,0.05398231,125.59,125.57,7.965]
[1744578384306,0.05398231,125.59,125.58,7.9644]
[1744578384707,0.05398231,125.59,125.56,0.05622029]
[1744578385007,0.05398231,125.59,125.57,7.9647]
[1744578385307,0.05398231,125.59,125.58,7.9644]
[1744578385606,0.05398231,125.59,125.56,0.05622029]
[1744578386006,8.01788231,125.59,125.56,8.02162029]
[1744578386607,8.01788231,125.59,125.56,0.05622029]
[1744578386806,0.05398231,125.59,125.56,0.05622029]
[1744578390812,7.9649,125.58,125.56,0.05622029]
[1744578391411,8.01808231,125.59,125.56,0.05622029]
[1744578391611,8.01808231,125.59,125.56,8.02192029]
[1744578392115,7.9645,125.58,125.56,8.02192029]
[1744578392316,0.05398231,125.59,125.56,0.05622029]
[1744578392714,7.9648,125.58,125.56,0.05622029]
[1744578393818,0.05398231,125.59,125.56,0.05622029]
[1744578394206,0.05398231,125.59,125.56,22.93246456]
[1744578394408,0.05398231,125.59,125.56,14.96716456]
[1744578394710,0.05398231,125.59,125.58,7.9644]
[1744578395417,0.05398231,125.59,125.57,7.9648]
[1744578395711,0.05398231,125.59,125.56,14.96716456]
[1744578395916,0.05398231,125.59,125.58,7.9644]
[1744578399317,0.05398231,125.59,125.56,16.95396456]
[1744578400119,0.05398231,125.59,125.56,0.05622029]
[1744578400516,7.9644,125.58,125.56,0.05622029]
[1744578400817,0.05398231,125.59,125.56,0.05622029]
[1744578401524,7.9644,125.58,125.56,0.05622029]
[1744578402026,0.05398231,125.59,125.56,0.05622029]
[1744578402508,7.9644,125.58,125.56,0.05622029]
[1744578402715,0.05398231,125.59,125.56,0.05622029]
[1744578404322,0.05398231,125.59,125.52,7.9681]
[1744578404625,0.05398231,125.59,125.5,695.24144427]
[1744578404819,7.9658,125.56,125.53,7.9675]
[1744578405323,7.9658,125.56,125.52,7.9679]
[1744578405524,7.9664,125.55,125.5,695.24144427]
[1744578405726,0.05752359,125.56,125.5,695.24144427]
[1744578406022,0.05752359,125.56,125.5,65.02144427]
[1744578406023,7.9667,125.55,125.5,65.02144427]
[1744578406221,0.05752359,125.56,125.5,65.02144427]
[1744578406418,0.05752359,125.56,125.52,7.9679]
[1744578406619,0.05752359,125.56,125.5,65.02144427]
[1744578407021,7.9674,125.54,125.5,72.99044427]
[1744578407223,0.05752359,125.56,125.5,62.93094427]
[1744578407420,48.02,125.57,125.5,70.90004427]
[1744578407621,0.05125586,125.54,125.5,70.90004427]
[1744578407820,0.05125586,125.54,125.5,14.91094427]
[1744578408126,0.05125586,125.54,125.5,70.90014427]
[1744578408324,7.9677,125.53,125.5,70.90014427]
[1744578408726,7.9677,125.53,125.5,55.9892]
[1744578408929,8.01845586,125.54,125.51,7.9687]
[1744578409525,8.01845586,125.54,125.5,55.9892]
[1744578409927,0.05125586,125.54,125.5,48.02]
[1744578410130,0.05125586,125.54,125.49,631.0]
[1744578410428,7.9689,125.51,125.49,631.0]
[1744578410628,14.91094427,125.57,125.49,7.9701]
[1744578410831,0.05469354,125.51,125.48,48.12]
[1744578411021,2.1453,125.54,125.48,48.12]
[1744578411230,0.05485548,125.51,125.48,56.0904]
[1744578411430,0.05485548,125.51,125.48,48.12]
[1744578414724,8.02395548,125.51,125.48,48.12]
[1744578414933,0.05485548,125.51,125.48,48.12]
[1744578415331,0.05485548,125.51,125.44,14.91094427]
[1744578415536,2.1084,125.53,125.45,48.12]
[1744578415736,0.05761295,125.49,125.46,14.91094427]
[1744578415928,0.05761295,125.49,125.46,21.29444427]
[1744578416331,2.1084,125.57,125.48,14.91094427]
[1744578416532,7.967,125.54,125.5,7.969]
[1744578416829,2.1084,125.57,125.51,48.12]
[1744578417035,2.1755,125.58,125.52,14.91094427]
[1744578417231,7.9651,125.57,125.53,7.9673]
[1744578417436,0.05376677,125.56,125.54,0.05267158]
[1744578417832,8.01986677,125.56,125.54,0.05267158]
[1744578418134,0.05376677,125.56,125.54,0.05267158]
[1744578418334,0.05376677,125.56,125.54,8.01927158]
[1744578418536,0.05376677,125.56,125.54,0.05267158]
[1744578418835,0.05376677,125.56,125.46,366.1438]
[1744578418836,0.05376677,125.56,125.48,48.12]
[1744578419237,14.91094427,125.57,125.48,48.12]
[1744578420034,0.06004465,125.54,125.46,7.9716]
[1744578420229,14.91094427,125.53,125.45,4.2678]
[1744578420541,7.9702,125.49,125.44,639.0729]
[1744578420731,0.05847914,125.51,125.44,639.0729]
[1744578420934,0.06106607,125.49,125.44,631.1]
[1744578421540,7.971,125.48,125.44,639.0733]
[1744578422038,0.06106607,125.49,125.44,631.1]
[1744578422337,14.97201034,125.49,125.43,48.12]
[1744578422737,0.06106607,125.49,125.43,63.03094427]
[1744578423240,7.9712,125.48,125.44,7.9732]
[1744578423437,0.06106607,125.49,125.43,63.03094427]
[1744578424040,7.9715,125.47,125.43,71.00454427]
[1744578424343,14.91094427,125.51,125.43,48.12]
[1744578424539,0.05144331,125.46,125.43,48.12]
[1744578424741,2.1255,125.52,125.45,14.91094427]
[1744578425136,48.12,125.55,125.46,2.0377]
[1744578425337,50.3095,125.55,125.47,7.9714]
[1744578425539,2.1895,125.55,125.48,48.14]
[1744578425941,8.02617596,125.53,125.5,0.05230048]
[1744578426330,0.05807596,125.53,125.5,0.05230048]
[1744578426532,0.05807596,125.53,125.5,8.02120048]
[1744578426845,2.1381,125.59,125.51,14.91094427]
[1744578427342,2.1381,125.59,125.52,7.9678]
[1744578427541,2.1381,125.59,125.51,14.91094427]
[1744578427842,19.20774427,125.62,125.53,14.91094427]
[1744578428045,0.05109056,125.56,125.54,48.17706444]
[1744578428341,7.9638,125.6,125.56,7.9654]
[1744578428542,117.80712859,125.63,125.55,14.91094427]
[1744578428743,7.963,125.61,125.57,7.9646]
[1744578429439,0.05641415,125.6,125.58,0.05467043]
[1744578430643,0.05641415,125.6,125.58,8.01897043]
[1744578431337,48.12,125.67,125.59,7.9638]
[1744578431641,6.4222,125.69,125.59,48.12]